[Event "Early-Titled-Tuesday-Blitz-October-03-2023"]
[Site "Chess.com"]
[Date "2023.10.03"]
[Round "11"]
[White "gtnamfrq"]
[Black "Grossboss19"]
[Result "1/2-1/2"]
[WhiteElo "2423"]
[BlackElo "2514"]
[TimeControl "180+1"]
[EndTime "10:09:47 PDT"]
[Termination "Game drawn by agreement"]

1. e4 {[%clk 0:03:00.9]} 1... e6 {[%clk 0:02:59.7]} 2. d4 {[%clk 0:03:00.9]}
2... d6 {[%clk 0:02:57.6]} 3. Nc3 {[%clk 0:03:00.1]} 3... c5 {[%clk 0:02:57.3]}
4. dxc5 {[%clk 0:02:56]} 4... dxc5 {[%clk 0:02:58.2]} 5. Qxd8+ {[%clk
0:02:55.8]} 5... Kxd8 {[%clk 0:02:54.3]} 6. Nf3 {[%clk 0:02:56.5]} 6... f6
{[%clk 0:02:41.7]} 7. Be3 {[%clk 0:02:49.4]} 7... a6 {[%clk 0:02:40.1]} 8.
O-O-O+ {[%clk 0:02:49.4]} 8... Nd7 {[%clk 0:02:33.8]} 9. Bc4 {[%clk 0:02:38.9]}
9... Ke7 {[%clk 0:02:29]} 10. a4 {[%clk 0:02:37]} 10... Nh6 {[%clk 0:02:19.3]}
11. Bf4 {[%clk 0:02:33.8]} 11... Nf7 {[%clk 0:02:07.8]} 12. a5 {[%clk
0:02:31.3]} 12... g5 {[%clk 0:02:07]} 13. Bc7 {[%clk 0:02:30.2]} 13... g4 {[%clk
0:02:03.3]} 14. Nh4 {[%clk 0:02:16.9]} 14... Bh6+ {[%clk 0:02:02.8]} 15. Kb1
{[%clk 0:02:16.8]} 15... Nde5 {[%clk 0:01:59]} 16. Be2 {[%clk 0:01:59.7]} 16...
Bd7 {[%clk 0:01:53.9]} 17. h3 {[%clk 0:01:48.9]} 17... gxh3 {[%clk 0:01:50]} 18.
Rxh3 {[%clk 0:01:48.4]} 18... Rac8 {[%clk 0:01:47.4]} 19. Bxe5 {[%clk
0:01:30.2]} 19... fxe5 {[%clk 0:01:42.8]} 20. Bh5 {[%clk 0:01:21.1]} 20... Ng5
{[%clk 0:01:29]} 21. Bg4 {[%clk 0:01:11.3]} 21... Bg7 {[%clk 0:01:25]} 22. Rg3
{[%clk 0:01:06.7]} 22... h6 {[%clk 0:01:22.3]} 23. Ng6+ {[%clk 0:01:04.2]} 23...
Ke8 {[%clk 0:01:16.4]} 24. Nxh8 {[%clk 0:01:03.5]} 24... Bxh8 {[%clk 0:01:17.3]}
25. Bh5+ {[%clk 0:01:03.9]} 25... Ke7 {[%clk 0:01:16.1]} 26. Rgd3 {[%clk
0:00:52.7]} 26... Bc6 {[%clk 0:01:12.9]} 27. f3 {[%clk 0:00:52.8]} 27... Bf6
{[%clk 0:01:09.4]} 28. Bg4 {[%clk 0:00:46.3]} 28... Bg7 {[%clk 0:01:06.8]} 29.
Ne2 {[%clk 0:00:43.3]} 29... Bb5 {[%clk 0:01:03.8]} 30. R3d2 {[%clk 0:00:39.5]}
30... Nh7 {[%clk 0:01:02.4]} 31. Ng3 {[%clk 0:00:35.6]} 31... Nf6 {[%clk
0:00:57.5]} 32. Bh3 {[%clk 0:00:34.7]} 32... h5 {[%clk 0:00:51.4]} 33. Rd6
{[%clk 0:00:32.5]} 33... Bd7 {[%clk 0:00:46.3]} 34. Rb6 {[%clk 0:00:32.6]} 34...
Rc7 {[%clk 0:00:41.5]} 35. Rdd6 {[%clk 0:00:26]} 35... Rc6 {[%clk 0:00:28]} 36.
Rbxc6 {[%clk 0:00:21.2]} 36... bxc6 {[%clk 0:00:25.5]} 37. Rd3 {[%clk
0:00:21.3]} 37... h4 {[%clk 0:00:24.8]} 38. Ne2 {[%clk 0:00:19.7]} 38... Ne8
{[%clk 0:00:22.8]} 39. Rb3 {[%clk 0:00:17.8]} 39... Bc8 {[%clk 0:00:22.9]} 40.
Rb6 {[%clk 0:00:16.5]} 40... Kd7 {[%clk 0:00:20.6]} 41. Nc3 {[%clk 0:00:15.1]}
41... Kc7 {[%clk 0:00:20.6]} 42. Na4 {[%clk 0:00:14.5]} 42... Bf8 {[%clk
0:00:21.1]} 43. c4 {[%clk 0:00:13.5]} 43... Nd6 {[%clk 0:00:17.2]} 44. Nxc5
{[%clk 0:00:07]} 44... Nxc4 {[%clk 0:00:15.9]} 45. Nxa6+ {[%clk 0:00:07.4]}
45... Bxa6 {[%clk 0:00:14.4]} 46. Rxa6 {[%clk 0:00:08.3]} 46... Kb7 {[%clk
0:00:14.6]} 47. Bxe6 {[%clk 0:00:03]} 47... Kxa6 {[%clk 0:00:11.4]} 48. Bxc4+
{[%clk 0:00:03.6]} 48... Kxa5 {[%clk 0:00:12.3]} 49. Kc2 {[%clk 0:00:03.8]}
49... Kb4 {[%clk 0:00:12.9]} 50. Be6 {[%clk 0:00:03.6]} 50... c5 {[%clk
0:00:12.9]} 51. Bd5 {[%clk 0:00:03.8]} 51... Bh6 {[%clk 0:00:13.5]} 52. b3
{[%clk 0:00:03.9]} 52... Be3 {[%clk 0:00:13.2]} 53. Kd3 {[%clk 0:00:04.3]} 53...
Bd4 {[%clk 0:00:13.6]} 54. Bc4 {[%clk 0:00:04.7]} 54... Ka5 {[%clk 0:00:13.5]}
55. Ke2 {[%clk 0:00:05]} 55... Bb2 {[%clk 0:00:13.3]} 56. Kf2 {[%clk 0:00:03.6]}
56... Bd4+ {[%clk 0:00:11.9]} 57. Kf1 {[%clk 0:00:04.1]} 57... Kb6 {[%clk
0:00:11.7]} 58. g3 {[%clk 0:00:03.6]} 58... hxg3 {[%clk 0:00:11.6]} 59. Kg2
{[%clk 0:00:04.4]} 59... Bf2 {[%clk 0:00:12.2]} 60. Bd5 {[%clk 0:00:04.2]} 60...
Kc7 {[%clk 0:00:12.6]} 61. Bc4 {[%clk 0:00:03.6]} 61... Kd6 {[%clk 0:00:13.1]}
62. Bd5 {[%clk 0:00:03.7]} 62... Ke7 {[%clk 0:00:13.7]} 63. Bb7 {[%clk
0:00:03.1]} 63... Kf6 {[%clk 0:00:14.6]} 64. Bc8 {[%clk 0:00:03.3]} 64... Kg5
{[%clk 0:00:15]} 65. Bh3 {[%clk 0:00:03.3]} 65... Kf4 {[%clk 0:00:15.9]} 66. Bg4
{[%clk 0:00:02.2]} 66... Be1 {[%clk 0:00:16.4]} 67. Bh5 {[%clk 0:00:02.6]} 67...
Ke3 {[%clk 0:00:16.5]} 68. Bf7 {[%clk 0:00:02.7]} 68... Kf4 {[%clk 0:00:13.9]}
69. Bh5 {[%clk 0:00:02.9]} 69... c4 {[%clk 0:00:12.8]} 70. bxc4 {[%clk
0:00:02.4]} 70... Bb4 {[%clk 0:00:13.1]} 71. Bg4 {[%clk 0:00:02.8]} 71... Bc5
{[%clk 0:00:13.7]} 72. Bf5 {[%clk 0:00:03.4]} 72... Bf2 {[%clk 0:00:14]} 73. Be6
{[%clk 0:00:04.3]} 73... Bc5 {[%clk 0:00:13.4]} 74. Bd5 {[%clk 0:00:04.9]} 74...
Bd6 {[%clk 0:00:14]} 75. c5 {[%clk 0:00:05.2]} 75... Bxc5 {[%clk 0:00:14.9]} 76.
Be6 {[%clk 0:00:05.5]} 76... Be7 {[%clk 0:00:13.5]} 77. Bd5 {[%clk 0:00:06]}
77... Bh4 {[%clk 0:00:14.4]} 78. Be6 {[%clk 0:00:06.2]} 78... Ke3 {[%clk
0:00:15]} 79. Bg4 {[%clk 0:00:06.5]} 79... Kd4 {[%clk 0:00:15.2]} 80. Bh5 {[%clk
0:00:06.7]} 80... Bg5 {[%clk 0:00:14.3]} 81. Kxg3 {[%clk 0:00:05.8]} 81... Bf4+
{[%clk 0:00:15.2]} 82. Kg4 {[%clk 0:00:06]} 82... Ke3 {[%clk 0:00:16.1]} 83. Kf5
{[%clk 0:00:06.5]} 83... Kd4 {[%clk 0:00:17]} 84. Bg4 {[%clk 0:00:06.6]} 84...
Ke3 {[%clk 0:00:17.9]} 85. Ke6 {[%clk 0:00:07.1]} 85... Kf2 {[%clk 0:00:18.8]}
86. Kd5 {[%clk 0:00:07.5]} 86... Kg1 {[%clk 0:00:19.7]} 87. Bh5 {[%clk 0:00:08]}
87... Kh2 {[%clk 0:00:20.6]} 88. Kc4 {[%clk 0:00:08.2]} 88... Kg3 {[%clk
0:00:21.5]} 89. Kd5 {[%clk 0:00:08.1]} 89... Kh4 {[%clk 0:00:22.4]} 90. Bg4
{[%clk 0:00:08.7]} 90... Kg5 {[%clk 0:00:23.3]} 91. Ke6 {[%clk 0:00:09.1]} 91...
Kh6 {[%clk 0:00:24.2]} 92. Kf5 {[%clk 0:00:09.5]} 92... Kg7 {[%clk 0:00:25.1]}
93. Bh3 {[%clk 0:00:09.9]} 93... Kh8 {[%clk 0:00:26]} 94. Bf1 {[%clk 0:00:10.2]}
94... Kg8 {[%clk 0:00:26.9]} 95. Be2 {[%clk 0:00:10.6]} 95... Kf8 {[%clk
0:00:27.8]} 96. Bd3 {[%clk 0:00:11.2]} 96... Ke8 {[%clk 0:00:28.7]} 97. Bc4
{[%clk 0:00:12.1]} 97... Kd8 {[%clk 0:00:29.6]} 98. Bd5 {[%clk 0:00:12.9]} 98...
Kc8 {[%clk 0:00:30.5]} 99. Be6+ {[%clk 0:00:13.8]} 99... Kb8 {[%clk 0:00:31.4]}
100. Bf7 {[%clk 0:00:14.7]} 100... Ka8 {[%clk 0:00:32.3]} 101. Bg6 {[%clk
0:00:15.4]} 101... Ka7 {[%clk 0:00:33.2]} 102. Bh5 {[%clk 0:00:16.3]} 102... Ka6
{[%clk 0:00:34.1]} 103. Bg4 {[%clk 0:00:17.1]} 103... Ka5 {[%clk 0:00:35]} 104.
Ke6 {[%clk 0:00:17.7]} 104... Ka4 {[%clk 0:00:35.9]} 105. Kd5 {[%clk 0:00:18.6]}
105... Kb4 {[%clk 0:00:36.8]} 106. Bh5 {[%clk 0:00:19.2]} 106... Kc3 {[%clk
0:00:37.7]} 107. Bg6 {[%clk 0:00:19.8]} 107... Kd2 {[%clk 0:00:38.6]} 108. Bh5
{[%clk 0:00:20.1]} 108... Ke1 {[%clk 0:00:39.5]} 109. Ke6 {[%clk 0:00:20.7]}
109... Kf2 {[%clk 0:00:40.4]} 110. Kf5 {[%clk 0:00:21.6]} 110... Kg3 {[%clk
0:00:41.3]} 111. Bg4 {[%clk 0:00:22.3]} 111... Kh4 {[%clk 0:00:42.2]} 112. Kg6
{[%clk 0:00:23]} 112... Kg3 {[%clk 0:00:42]} 113. Bh5 {[%clk 0:00:18.7]} 1/2-1/2

[Event "Early-Titled-Tuesday-Blitz-October-03-2023"]
[Site "Chess.com"]
[Date "2023.10.03"]
[Round "11"]
[White "Martial2008"]
[Black "LionTheLeon_06"]
[Result "1/2-1/2"]
[WhiteElo "2613"]
[BlackElo "2774"]
[TimeControl "180+1"]
[EndTime "10:09:57 PDT"]
[Termination "Game drawn by repetition"]

1. d4 {[%clk 0:02:57]} 1... Nf6 {[%clk 0:02:56.5]} 2. Nf3 {[%clk 0:02:56.3]}
2... b6 {[%clk 0:02:56.6]} 3. Bg5 {[%clk 0:02:55.2]} 3... Bb7 {[%clk 0:02:55.1]}
4. Nbd2 {[%clk 0:02:55.3]} 4... e6 {[%clk 0:02:52.8]} 5. e4 {[%clk 0:02:52.6]}
5... h6 {[%clk 0:02:53.4]} 6. Bxf6 {[%clk 0:02:50.5]} 6... Qxf6 {[%clk
0:02:54.3]} 7. c3 {[%clk 0:02:47.5]} 7... g5 {[%clk 0:02:54]} 8. Bd3 {[%clk
0:02:46.4]} 8... d6 {[%clk 0:02:54.2]} 9. h3 {[%clk 0:02:46.3]} 9... Nd7 {[%clk
0:02:54.6]} 10. O-O {[%clk 0:02:46.4]} 10... Bg7 {[%clk 0:02:54.7]} 11. Re1
{[%clk 0:02:46.5]} 11... Qe7 {[%clk 0:02:55.1]} 12. Nf1 {[%clk 0:02:42.7]} 12...
O-O {[%clk 0:02:52.4]} 13. Ng3 {[%clk 0:02:42.8]} 13... Rfe8 {[%clk 0:02:29]}
14. Nh5 {[%clk 0:02:39.3]} 14... Bh8 {[%clk 0:02:27.2]} 15. Bc2 {[%clk
0:02:37.5]} 15... Nf8 {[%clk 0:02:26.8]} 16. Nh2 {[%clk 0:02:35.6]} 16... Ng6
{[%clk 0:02:24.6]} 17. Ng4 {[%clk 0:02:35.6]} 17... Bg7 {[%clk 0:02:15.5]} 18.
e5 {[%clk 0:02:26.6]} 18... dxe5 {[%clk 0:02:11.3]} 19. dxe5 {[%clk 0:02:27.2]}
19... Rad8 {[%clk 0:02:11.5]} 20. Qe2 {[%clk 0:02:20.5]} 20... Nf4 {[%clk
0:02:10.1]} 21. Nxf4 {[%clk 0:02:19.3]} 21... gxf4 {[%clk 0:02:11]} 22. Be4
{[%clk 0:02:16.8]} 22... Bxe4 {[%clk 0:02:00.8]} 23. Qxe4 {[%clk 0:02:17.7]}
23... Qg5 {[%clk 0:02:01.4]} 24. Rad1 {[%clk 0:02:15.9]} 24... h5 {[%clk
0:01:58.5]} 25. Nh2 {[%clk 0:02:14.8]} 25... Rxd1 {[%clk 0:01:56.8]} 26. Rxd1
{[%clk 0:02:15.7]} 26... Qxe5 {[%clk 0:01:55.6]} 27. Qc6 {[%clk 0:02:14]} 27...
Rf8 {[%clk 0:01:22]} 28. Nf3 {[%clk 0:02:13.1]} 28... Qf5 {[%clk 0:01:16.3]} 29.
Qxc7 {[%clk 0:02:08.5]} 29... e5 {[%clk 0:01:09.3]} 30. Rd8 {[%clk 0:02:00.9]}
30... e4 {[%clk 0:01:02.6]} 31. Rxf8+ {[%clk 0:01:59.8]} 31... Bxf8 {[%clk
0:01:02.3]} 32. Nd4 {[%clk 0:02:00.5]} 32... Qg5 {[%clk 0:00:54.2]} 33. Kf1
{[%clk 0:01:52.7]} 33... Bc5 {[%clk 0:00:48]} 34. Qc8+ {[%clk 0:01:30.8]} 34...
Kg7 {[%clk 0:00:43.3]} 35. Qd7 {[%clk 0:01:21.8]} 35... Qe5 {[%clk 0:00:33]} 36.
Nf5+ {[%clk 0:01:12.5]} 36... Kf6 {[%clk 0:00:16.4]} 37. Nh6 {[%clk 0:01:11.3]}
37... Qe6 {[%clk 0:00:14.2]} 38. Qd8+ {[%clk 0:00:49.2]} 38... Kg6 {[%clk
0:00:14.7]} 39. Ng8 {[%clk 0:00:48.7]} 39... e3 {[%clk 0:00:10.5]} 40. fxe3
{[%clk 0:00:44.9]} 40... fxe3 {[%clk 0:00:11.4]} 41. Ke2 {[%clk 0:00:44]} 41...
Qc4+ {[%clk 0:00:11.5]} 42. Ke1 {[%clk 0:00:43]} 42... Qe6 {[%clk 0:00:03.5]}
43. h4 {[%clk 0:00:41.5]} 43... Kh7 {[%clk 0:00:01.8]} 44. Qg5 {[%clk
0:00:37.3]} 44... Qg6 {[%clk 0:00:01.1]} 45. Nf6+ {[%clk 0:00:37.3]} 45... Kg7
{[%clk 0:00:01.6]} 46. Nxh5+ {[%clk 0:00:37.8]} 46... Kh7 {[%clk 0:00:02.2]} 47.
Nf6+ {[%clk 0:00:38.2]} 47... Kg7 {[%clk 0:00:02.6]} 48. Qxg6+ {[%clk
0:00:35.2]} 48... Kxg6 {[%clk 0:00:03]} 49. Ne4 {[%clk 0:00:36]} 49... Be7
{[%clk 0:00:03.7]} 50. g3 {[%clk 0:00:35.6]} 50... Kf5 {[%clk 0:00:03.8]} 51.
Ng5 {[%clk 0:00:34.7]} 51... Bxg5 {[%clk 0:00:01.8]} 52. hxg5 {[%clk 0:00:35.6]}
52... Ke4 {[%clk 0:00:01.1]} 53. Ke2 {[%clk 0:00:35.2]} 53... b5 {[%clk
0:00:01.8]} 54. b3 {[%clk 0:00:31.9]} 54... a6 {[%clk 0:00:02.2]} 55. b4 {[%clk
0:00:31.1]} 55... Kf5 {[%clk 0:00:01.3]} 56. Kxe3 {[%clk 0:00:31.6]} 56... Kxg5
{[%clk 0:00:02.2]} 57. Kf3 {[%clk 0:00:30.8]} 57... f5 {[%clk 0:00:01.5]} 58.
Kf2 {[%clk 0:00:27.4]} 58... Kg4 {[%clk 0:00:01.7]} 59. Kg2 {[%clk 0:00:27.8]}
59... Kg5 {[%clk 0:00:02.2]} 60. Kf3 {[%clk 0:00:28.2]} 60... Kf6 {[%clk
0:00:01.9]} 61. Kf4 {[%clk 0:00:28.8]} 61... Ke6 {[%clk 0:00:02.5]} 62. Kf3
{[%clk 0:00:16.4]} 62... Kf6 {[%clk 0:00:02]} 63. g4 {[%clk 0:00:09.6]} 63...
fxg4+ {[%clk 0:00:02.2]} 64. Kxg4 {[%clk 0:00:10.5]} 64... Ke5 {[%clk
0:00:02.9]} 65. Kf3 {[%clk 0:00:11.2]} 65... Kd5 {[%clk 0:00:03.4]} 66. Ke3
{[%clk 0:00:11.9]} 66... Ke5 {[%clk 0:00:04]} 67. Kd2 {[%clk 0:00:10.4]} 67...
Ke4 {[%clk 0:00:03.8]} 68. Ke2 {[%clk 0:00:10.8]} 68... Kd5 {[%clk 0:00:04]} 69.
Kd3 {[%clk 0:00:11.2]} 69... Ke5 {[%clk 0:00:04.5]} 70. c4 {[%clk 0:00:11.7]}
70... bxc4+ {[%clk 0:00:05.1]} 71. Kxc4 {[%clk 0:00:12.6]} 71... Kd6 {[%clk
0:00:06]} 72. Kd4 {[%clk 0:00:10.7]} 72... Kc6 {[%clk 0:00:06.3]} 73. a3 {[%clk
0:00:11.4]} 73... Kb5 {[%clk 0:00:06.3]} 74. Kc3 {[%clk 0:00:05.4]} 74... Ka4
{[%clk 0:00:06.2]} 75. Kb2 {[%clk 0:00:04.9]} 75... a5 {[%clk 0:00:06.7]} 76.
Kc3 {[%clk 0:00:04.5]} 76... axb4+ {[%clk 0:00:03.8]} 77. axb4 {[%clk
0:00:05.4]} 77... Kb5 {[%clk 0:00:04.6]} 78. Kb3 {[%clk 0:00:06.1]} 78... Kb6
{[%clk 0:00:05.4]} 79. Kc4 {[%clk 0:00:06.5]} 79... Kc6 {[%clk 0:00:06.3]} 80.
Kc3 {[%clk 0:00:06.9]} 80... Kb5 {[%clk 0:00:06.5]} 81. Kb3 {[%clk 0:00:07.7]}
81... Kb6 {[%clk 0:00:07.4]} 82. Kb2 {[%clk 0:00:08.5]} 82... Kb5 {[%clk
0:00:07.8]} 83. Ka3 {[%clk 0:00:09.2]} 83... Kb6 {[%clk 0:00:08.7]} 84. Ka4
{[%clk 0:00:10.1]} 84... Ka6 {[%clk 0:00:09.3]} 85. b5+ {[%clk 0:00:11]} 85...
Kb6 {[%clk 0:00:09.8]} 86. Kb4 {[%clk 0:00:11.9]} 86... Kb7 {[%clk 0:00:10.7]}
87. Kb3 {[%clk 0:00:12.8]} 87... Kb6 {[%clk 0:00:11.2]} 88. Kc4 {[%clk
0:00:13.5]} 88... Kb7 {[%clk 0:00:12.1]} 89. Kc5 {[%clk 0:00:14.4]} 89... Kc7
{[%clk 0:00:12.5]} 90. Kb4 {[%clk 0:00:15.3]} 90... Kb6 {[%clk 0:00:12.8]} 91.
Ka4 {[%clk 0:00:16.1]} 91... Kb7 {[%clk 0:00:13.7]} 92. Ka5 {[%clk 0:00:17]}
92... Ka7 {[%clk 0:00:14.3]} 93. b6+ {[%clk 0:00:17.8]} 93... Kb7 {[%clk
0:00:14.7]} 94. Kb5 {[%clk 0:00:18.6]} 94... Kb8 {[%clk 0:00:15.6]} 95. Kb4
{[%clk 0:00:19.5]} 95... Kb7 {[%clk 0:00:16]} 96. Kc5 {[%clk 0:00:20.4]} 96...
Kb8 {[%clk 0:00:16.9]} 97. Kc6 {[%clk 0:00:21]} 97... Kc8 {[%clk 0:00:17.5]} 98.
Kb5 {[%clk 0:00:21.9]} 98... Kb7 {[%clk 0:00:17.6]} 99. Ka5 {[%clk 0:00:22.8]}
99... Kb8 {[%clk 0:00:18.4]} 100. Ka6 {[%clk 0:00:23.6]} 100... Ka8 {[%clk
0:00:19]} 101. Ka5 {[%clk 0:00:24.2]} 101... Kb7 {[%clk 0:00:19.4]} 102. Kb5
{[%clk 0:00:25]} 102... Kb8 {[%clk 0:00:19.8]} 103. Kb4 {[%clk 0:00:25.7]}
103... Kb7 {[%clk 0:00:20.3]} 104. Kc5 {[%clk 0:00:26]} 104... Kb8 {[%clk
0:00:20.6]} 105. Kd6 {[%clk 0:00:26.7]} 105... Kb7 {[%clk 0:00:20.9]} 106. Kc5
{[%clk 0:00:27.4]} 1/2-1/2

[Event "Early-Titled-Tuesday-Blitz-October-03-2023"]
[Site "Chess.com"]
[Date "2023.10.03"]
[Round "11"]
[White "Wizard_97"]
[Black "Kildepiotr"]
[Result "1/2-1/2"]
[WhiteElo "2548"]
[BlackElo "2633"]
[TimeControl "180+1"]
[EndTime "10:10:10 PDT"]
[Termination "Game drawn - insufficient material"]

1. e4 {[%clk 0:03:00.9]} 1... g6 {[%clk 0:03:00.1]} 2. d4 {[%clk 0:02:59.6]}
2... Bg7 {[%clk 0:02:59.9]} 3. Nc3 {[%clk 0:02:58.4]} 3... c6 {[%clk 0:03:00.3]}
4. Nf3 {[%clk 0:02:56.3]} 4... d6 {[%clk 0:02:59.8]} 5. Be2 {[%clk 0:02:56.7]}
5... Nf6 {[%clk 0:02:59.8]} 6. O-O {[%clk 0:02:57.3]} 6... O-O {[%clk 0:03:00]}
7. a4 {[%clk 0:02:57.4]} 7... Bg4 {[%clk 0:02:59.6]} 8. a5 {[%clk 0:02:57.5]}
8... Nbd7 {[%clk 0:02:59.6]} 9. a6 {[%clk 0:02:56.3]} 9... b5 {[%clk 0:02:57]}
10. d5 {[%clk 0:02:56.1]} 10... b4 {[%clk 0:02:56.3]} 11. dxc6 {[%clk
0:02:56.1]} 11... bxc3 {[%clk 0:02:56.4]} 12. cxd7 {[%clk 0:02:56.1]} 12... Nxd7
{[%clk 0:02:55.5]} 13. bxc3 {[%clk 0:02:54.6]} 13... Bxc3 {[%clk 0:02:55]} 14.
Ra3 {[%clk 0:02:51.2]} 14... Bg7 {[%clk 0:02:53.8]} 15. h3 {[%clk 0:02:45.8]}
15... Bxf3 {[%clk 0:02:52.8]} 16. Bxf3 {[%clk 0:02:46.7]} 16... Rb8 {[%clk
0:02:46.7]} 17. Be3 {[%clk 0:02:44.8]} 17... Qc7 {[%clk 0:02:44.8]} 18. Be2
{[%clk 0:02:36.9]} 18... Rb2 {[%clk 0:02:38.5]} 19. Bd3 {[%clk 0:02:35.2]} 19...
Nc5 {[%clk 0:02:27.9]} 20. Qc1 {[%clk 0:02:27.2]} 20... Rfb8 {[%clk 0:02:24.7]}
21. Bc4 {[%clk 0:02:15.9]} 21... R2b4 {[%clk 0:02:18.3]} 22. Bxc5 {[%clk
0:01:55.3]} 22... Qxc5 {[%clk 0:02:16]} 23. Bb3 {[%clk 0:01:49.9]} 23... Rxe4
{[%clk 0:02:12]} 24. Ra4 {[%clk 0:01:28.8]} 24... Rxa4 {[%clk 0:02:10]} 25. Bxa4
{[%clk 0:01:29.7]} 25... Qc4 {[%clk 0:02:02.5]} 26. Bb3 {[%clk 0:01:22.2]} 26...
Qxa6 {[%clk 0:02:01]} 27. Qf4 {[%clk 0:01:22.7]} 27... e6 {[%clk 0:01:59.1]} 28.
Rd1 {[%clk 0:01:22.6]} 28... Be5 {[%clk 0:01:58.2]} 29. Qf3 {[%clk 0:01:15.7]}
29... Qb7 {[%clk 0:01:50]} 30. Qg4 {[%clk 0:01:11.3]} 30... Kg7 {[%clk 0:01:47]}
31. f4 {[%clk 0:01:05.4]} 31... Qb6+ {[%clk 0:01:46.7]} 32. Kh1 {[%clk
0:01:03.1]} 32... Bf6 {[%clk 0:01:46.8]} 33. Qg3 {[%clk 0:00:55.1]} 33... d5
{[%clk 0:01:45.1]} 34. f5 {[%clk 0:00:51.2]} 34... exf5 {[%clk 0:01:38.9]} 35.
Rxd5 {[%clk 0:00:50.5]} 35... Rd8 {[%clk 0:01:28.7]} 36. Qd3 {[%clk 0:00:40.6]}
36... Rxd5 {[%clk 0:01:25.4]} 37. Qxd5 {[%clk 0:00:41.5]} 37... Qc7 {[%clk
0:01:24.8]} 38. Qb5 {[%clk 0:00:25.7]} 38... Bd4 {[%clk 0:01:19.4]} 39. Qe8
{[%clk 0:00:23]} 39... Bc5 {[%clk 0:01:12.1]} 40. Bc4 {[%clk 0:00:17.3]} 40...
a5 {[%clk 0:01:04.7]} 41. Bb3 {[%clk 0:00:17.2]} 41... Kh6 {[%clk 0:00:46.1]}
42. Qe1 {[%clk 0:00:15.6]} 42... Qf4 {[%clk 0:00:39.1]} 43. Bxf7 {[%clk
0:00:14.6]} 43... a4 {[%clk 0:00:38.3]} 44. Bd5 {[%clk 0:00:10.1]} 44... a3
{[%clk 0:00:38.1]} 45. Bb3 {[%clk 0:00:08.1]} 45... Qd4 {[%clk 0:00:34]} 46.
Qc1+ {[%clk 0:00:07.7]} 46... f4 {[%clk 0:00:31.7]} 47. Kh2 {[%clk 0:00:07]}
47... Kg7 {[%clk 0:00:27.9]} 48. Qe1 {[%clk 0:00:06.4]} 48... Kh6 {[%clk
0:00:24.1]} 49. Qh4+ {[%clk 0:00:06.1]} 49... Kg7 {[%clk 0:00:23.6]} 50. Qe1
{[%clk 0:00:07]} 50... Qe3 {[%clk 0:00:21.6]} 51. Qa1+ {[%clk 0:00:06.3]} 51...
Bd4 {[%clk 0:00:21.2]} 52. Qf1 {[%clk 0:00:04.9]} 52... Be5 {[%clk 0:00:16.7]}
53. Qf3 {[%clk 0:00:04.2]} 53... Qxf3 {[%clk 0:00:17.1]} 54. gxf3 {[%clk
0:00:05.1]} 54... Kf6 {[%clk 0:00:17.3]} 55. Kg2 {[%clk 0:00:05.6]} 55... Ke7
{[%clk 0:00:17.7]} 56. Kf1 {[%clk 0:00:06.1]} 56... Kd6 {[%clk 0:00:18.3]} 57.
Ke2 {[%clk 0:00:06.8]} 57... Kc5 {[%clk 0:00:18.6]} 58. Kd3 {[%clk 0:00:07.4]}
58... Kb4 {[%clk 0:00:19]} 59. Bg8 {[%clk 0:00:07.6]} 59... h5 {[%clk
0:00:17.4]} 60. Ba2 {[%clk 0:00:05.7]} 60... g5 {[%clk 0:00:17.6]} 61. Be6
{[%clk 0:00:06]} 61... Kc5 {[%clk 0:00:16.5]} 62. Ba2 {[%clk 0:00:05.8]} 62...
Bd4 {[%clk 0:00:15.1]} 63. Ke4 {[%clk 0:00:05.4]} 63... Bg1 {[%clk 0:00:12.8]}
64. Kf5 {[%clk 0:00:05.9]} 64... g4 {[%clk 0:00:12.9]} 65. hxg4 {[%clk
0:00:06.3]} 65... h4 {[%clk 0:00:13.2]} 66. Kxf4 {[%clk 0:00:06.9]} 66... Bh2+
{[%clk 0:00:10.8]} 67. Ke3 {[%clk 0:00:07.4]} 67... Bg3 {[%clk 0:00:09.4]} 68.
Ke2 {[%clk 0:00:08]} 68... h3 {[%clk 0:00:09.5]} 69. Kf1 {[%clk 0:00:08.7]}
69... Kd4 {[%clk 0:00:10]} 70. g5 {[%clk 0:00:09.3]} 70... Ke5 {[%clk
0:00:10.4]} 71. g6 {[%clk 0:00:09.9]} 71... Kf6 {[%clk 0:00:11]} 72. Bf7 {[%clk
0:00:10]} 72... Be5 {[%clk 0:00:10.6]} 73. Kg1 {[%clk 0:00:08.5]} 73... Bf4
{[%clk 0:00:11.2]} 74. Kh1 {[%clk 0:00:08.7]} 74... Kg7 {[%clk 0:00:11.4]} 75.
Kg1 {[%clk 0:00:06.7]} 75... Be5 {[%clk 0:00:11.5]} 76. Kh1 {[%clk 0:00:06.1]}
76... Bg3 {[%clk 0:00:11.3]} 77. Kg1 {[%clk 0:00:05.2]} 77... Kf6 {[%clk
0:00:11.8]} 78. Kh1 {[%clk 0:00:05]} 78... Kg7 {[%clk 0:00:11.5]} 79. Kg1 {[%clk
0:00:05.6]} 79... Kh6 {[%clk 0:00:12.1]} 80. Kh1 {[%clk 0:00:06.2]} 80... Be5
{[%clk 0:00:11.9]} 81. Kg1 {[%clk 0:00:06.7]} 81... Kg5 {[%clk 0:00:12.1]} 82.
Kh1 {[%clk 0:00:07.4]} 82... Kh4 {[%clk 0:00:11.2]} 83. f4 {[%clk 0:00:06.6]}
83... Bf6 {[%clk 0:00:10.6]} 84. Be6 {[%clk 0:00:06.9]} 84... Kg3 {[%clk
0:00:08.7]} 85. f5 {[%clk 0:00:07.6]} 85... Be5 {[%clk 0:00:07.6]} 86. Ba2
{[%clk 0:00:07.6]} 86... Kf2 {[%clk 0:00:07.9]} 87. Bb3 {[%clk 0:00:07.8]} 87...
Ke3 {[%clk 0:00:08.2]} 88. Be6 {[%clk 0:00:07.7]} 88... Kd2 {[%clk 0:00:08.5]}
89. Bg8 {[%clk 0:00:08.2]} 89... Kxc2 {[%clk 0:00:08.7]} 90. Bf7 {[%clk
0:00:08.9]} 90... Kc3 {[%clk 0:00:08.8]} 91. g7 {[%clk 0:00:08.9]} 91... Bxg7
{[%clk 0:00:08.7]} 92. Kh2 {[%clk 0:00:09.6]} 92... Bf6 {[%clk 0:00:08.9]} 93.
Kxh3 {[%clk 0:00:10.2]} 93... Kd4 {[%clk 0:00:09.3]} 94. Kg4 {[%clk 0:00:10.8]}
94... Be5 {[%clk 0:00:09.9]} 95. Kh5 {[%clk 0:00:11.1]} 95... Kc3 {[%clk
0:00:10.4]} 96. Kg6 {[%clk 0:00:11.8]} 96... Kb2 {[%clk 0:00:10.9]} 97. f6
{[%clk 0:00:12.5]} 97... Bxf6 {[%clk 0:00:11.5]} 98. Kxf6 {[%clk 0:00:12.6]}
98... a2 {[%clk 0:00:12.1]} 99. Bxa2 {[%clk 0:00:13.2]} 1/2-1/2